fUST/lending_fUST_20240906
["ID","MTS","AMOUNT","RATE_DAILY","PERIOD"]
[337328272,1725605439969,-500.0,0.00020016,2]
[337328273,1725605439979,-500.0,0.00020016,2]
[337328274,1725605439989,-500.0,0.00020016,2]
[337328275,1725605439999,-540.07,0.00020016,2]
[337328276,1725605440009,-500.0,0.00020016,2]
[337328277,1725605440020,-500.0,0.00020016,2]
[337328278,1725605440029,-500.0,0.00020016,2]
[337328279,1725605440039,-500.0,0.00020016,2]
[337328280,1725605440048,-664.45,0.00020016,2]
[337328281,1725605440058,-741.53,0.00020016,2]
[337328282,1725605440068,-500.0,0.00020016,2]
[337328283,1725605440077,-500.0,0.00020016,2]
[337328284,1725605440087,-500.0,0.00020016,2]
[337328285,1725605440096,-500.0,0.00020016,2]
[337328286,1725605440107,-500.0,0.00020016,2]
[337328287,1725605440118,-1263.63,0.00020016,2]
[337328288,1725605440128,-500.0,0.00020016,2]
[337328289,1725605440139,-500.0,0.00020016,2]
[337328290,1725605440152,-472.22790551,0.00020016,2]
[337328291,1725605440162,-500.0,0.00020016,2]
[337328292,1725605440172,-980.56,0.00020016,2]
[337328293,1725605440182,-500.0,0.00020016,2]
[337328294,1725605440192,-551.60977079,0.00020016,2]
[337328295,1725605440201,-500.0,0.00020016,2]
[337328296,1725605440210,-500.0,0.00020016,2]
[337328297,1725605440222,-500.0,0.00020016,2]
[337328298,1725605440232,-832.16,0.00020016,2]
[337328300,1725605440241,-500.0,0.00020016,2]
[337328302,1725605440251,-511.22513631,0.00020016,2]
[337328304,1725605440260,-500.0,0.00020016,2]
[337328305,1725605440270,-500.0,0.00020016,2]
[337328306,1725605440280,-924.1,0.00020016,2]
[337328307,1725605440290,-500.0,0.00020016,2]
[337328308,1725605440300,-1190.74,0.00020016,2]
[337328309,1725605440310,-6654.5,0.00020016,2]
[337328310,1725605440320,-1202.13,0.00020016,2]
[337328311,1725605440330,-1635.46,0.00020016,2]
[337328312,1725605440340,-1139.1,0.00020016,2]
[337328313,1725605440349,-500.0,0.00020016,2]
[337328314,1725605440359,-1182.98,0.00020016,2]
[337328315,1725605440368,-500.0,0.00020016,2]
[337328316,1725605440378,-500.0,0.00020016,2]
[337328317,1725605440388,-769.27,0.00020016,2]
[337328318,1725605440397,-500.0,0.00020016,2]
[337328319,1725605440407,-500.0,0.00020016,2]
[337328320,1725605440416,-500.0,0.00020016,2]
[337328321,1725605440426,-529.98,0.00020016,2]
[337328322,1725605440435,-500.0,0.00020016,2]
[337328323,1725605440445,-500.0,0.00020016,2]
[337328324,1725605440454,-500.0,0.00020016,2]
[337328325,1725605440464,-500.0,0.00020016,2]
[337328326,1725605440474,-500.0,0.00020016,2]
[337328327,1725605440484,-500.0,0.00020016,2]
[337328328,1725605440493,-500.0,0.00020016,2]
[337328329,1725605440502,-500.0,0.00020016,2]
[337328330,1725605440512,-552.24,0.00020016,2]
[337328331,1725605440522,-500.0,0.00020016,2]
[337328332,1725605440531,-500.0,0.00020016,2]
[337328333,1725605440540,-2018.59,0.00020016,2]
[337328334,1725605440550,-500.0,0.00020016,2]
[337328335,1725605440559,-97937.3,0.00020016,2]
[337328336,1725605440569,-500.0,0.00020016,2]
[337328337,1725605440578,-500.0,0.00020016,2]
[337328338,1725605440587,-500.0,0.00020016,2]
[337328339,1725605440597,-500.0,0.00020016,2]
[337328340,1725605440607,-500.0,0.00020016,2]
[337328341,1725605440616,-500.0,0.00020016,2]
[337328342,1725605440626,-1221.83,0.00020016,2]
[337328343,1725605440635,-500.0,0.00020016,2]
[337328344,1725605440644,-500.0,0.00020016,2]
[337328345,1725605440653,-500.0,0.00020016,2]
[337328346,1725605440666,-662.76,0.00020016,2]
[337328347,1725605440675,-500.0,0.00020016,2]
[337328348,1725605440684,-500.0,0.00020016,2]
[337328349,1725605440693,-500.0,0.00020016,2]
[337328350,1725605440702,-500.0,0.00020016,2]
[337328351,1725605440712,-1210.8,0.00020016,2]
[337328352,1725605440721,-510.19931738,0.00020016,2]
[337328353,1725605440731,-500.0,0.00020016,2]
[337328354,1725605440740,-500.0,0.00020016,2]
[337328355,1725605440749,-500.0,0.00020016,2]
[337328356,1725605440759,-12241.60216015,0.00020017,15]
[337328357,1725605440768,-500.0,0.00020017,2]
[337328358,1725605440778,-500.0,0.00020017,2]
[337328359,1725605440787,-500.0,0.00020017,2]
[337328360,1725605440796,-500.0,0.00020017,2]
[337328361,1725605440805,-195.90199049,0.00020017,2]
[337328362,1725605440814,-500.0,0.00020017,2]
[337328363,1725605440823,-356.97419144,0.00020017,2]
[337328364,1725605440832,-500.0,0.00020017,2]
[337328365,1725605440841,-1436.41,0.00020017,2]
[337328366,1725605440850,-500.0,0.00020017,2]
[337328367,1725605440859,-346.04790421,0.00020017,2]
[337328368,1725605440869,-500.0,0.00020017,2]
[337328369,1725605440878,-500.0,0.00020017,2]
[337328370,1725605440888,-500.0,0.00020017,2]
[337328371,1725605440897,-500.0,0.00020017,2]
[337328372,1725605440906,-564.61393827,0.00020017,2]
[337328373,1725605440915,-500.0,0.00020017,2]
[337328374,1725605440925,-679.78,0.00020017,2]
[337328375,1725605440934,-500.0,0.00020017,2]
[337328376,1725605440944,-500.0,0.00020017,2]
[337328377,1725605440953,-348.79809042,0.00020017,2]
[337328378,1725605440963,-194.333393,0.00020017,2]
[337328379,1725605440974,-500.0,0.00020017,2]
[337328380,1725605440983,-444.22188546,0.00020017,2]
[337328381,1725605440992,-500.0,0.00020017,2]
[337328382,1725605441002,-500.0,0.00020017,2]
[337328383,1725605441011,-500.0,0.00020017,2]
[337328384,1725605441020,-500.0,0.00020017,2]
[337328385,1725605441030,-500.0,0.00020017,2]
[337328386,1725605441039,-500.0,0.00020017,2]
[337328387,1725605441048,-615.82652467,0.00020017,2]
[337328388,1725605441058,-500.0,0.00020017,2]
[337328389,1725605441067,-500.0,0.00020017,2]
[337328390,1725605441077,-500.0,0.00020017,2]
[337328391,1725605441087,-500.0,0.00020017,2]
[337328392,1725605441097,-500.0,0.00020017,2]
[337328393,1725605441106,-500.0,0.00020017,2]
[337328394,1725605441116,-527.93,0.00020017,2]
[337328395,1725605441125,-500.0,0.00020017,2]
[337328396,1725605441134,-500.0,0.00020017,2]
[337328397,1725605441147,-500.0,0.00020017,2]
[337328398,1725605441157,-500.0,0.00020017,2]
[337328399,1725605441166,-500.0,0.00020017,2]
[337328400,1725605441175,-500.0,0.00020017,2]
[337328401,1725605441186,-500.0,0.00020017,2]
[337328402,1725605441195,-500.0,0.00020017,2]
[337328403,1725605441205,-500.0,0.00020017,2]
[337328404,1725605441215,-500.0,0.00020017,2]
[337328405,1725605441225,-500.0,0.00020017,2]
[337328406,1725605441235,-500.0,0.00020017,2]
[337328407,1725605441244,-500.0,0.00020017,2]
[337328408,1725605441255,-500.0,0.00020017,2]
[337328409,1725605441264,-500.0,0.00020017,2]
[337328410,1725605441274,-500.0,0.00020017,2]
[337328411,1725605441284,-500.0,0.00020017,2]
[337328412,1725605441294,-500.0,0.00020017,2]
[337328413,1725605441303,-500.0,0.00020017,2]
[337328414,1725605441313,-411.81946565,0.00020017,2]
[337328415,1725605441323,-500.0,0.00020017,2]
[337328416,1725605441332,-612.97888055,0.00020017,2]
[337328417,1725605441343,-550.40035792,0.00020017,2]
[337328418,1725605441352,-500.0,0.00020017,2]
[337328419,1725605441362,-500.0,0.00020017,2]
[337328420,1725605441372,-500.0,0.00020017,2]
[337328421,1725605441383,-500.0,0.00020017,2]
[337328422,1725605441393,-500.0,0.00020017,2]
[337328423,1725605441403,-500.0,0.00020017,2]
[337328424,1725605441412,-500.0,0.00020017,2]
[337328425,1725605441422,-500.0,0.00020017,2]
[337328426,1725605441432,-500.0,0.00020017,2]
[337328427,1725605441441,-500.0,0.00020017,2]
[337328428,1725605441450,-500.0,0.00020017,2]
[337328429,1725605441460,-500.0,0.00020017,2]
[337328430,1725605441469,-507.56292901,0.00020017,2]
[337328431,1725605441480,-500.0,0.00020017,2]
[337328432,1725605441489,-503.99874385,0.00020017,2]
[337328433,1725605441499,-500.0,0.00020017,2]
[337328434,1725605441509,-500.0,0.00020017,2]
[337328435,1725605441682,-752.65,0.00020017,2]
[337328436,1725605441692,-506.41469261,0.00020017,2]
[337328437,1725605441701,-500.0,0.00020017,2]
[337328438,1725605441711,-500.0,0.00020017,2]
[337328439,1725605441722,-500.0,0.00020017,2]
[337328440,1725605441732,-500.0,0.00020017,2]
[337328441,1725605441742,-500.0,0.00020017,2]
[337328442,1725605441753,-500.0,0.00020017,2]
[337328443,1725605441762,-279.44228473,0.00020017,2]
[337328444,1725605441773,-500.0,0.00020017,2]
[337328445,1725605441783,-500.0,0.00020017,2]
[337328446,1725605441793,-500.0,0.00020017,2]
[337328447,1725605441803,-514.2498546,0.00020017,2]
[337328448,1725605441813,-500.0,0.00020017,2]
[337328449,1725605441823,-500.0,0.00020017,2]
[337328450,1725605441832,-500.0,0.00020017,2]
[337328451,1725605441842,-513.56855052,0.00020017,2]
[337328452,1725605441852,-500.0,0.00020017,2]
[337328453,1725605441861,-519.44098252,0.00020017,2]
[337328454,1725605441872,-500.0,0.00020017,2]
[337328455,1725605441881,-552.73242282,0.00020017,2]
[337328456,1725605441891,-500.0,0.00020017,2]
[337328457,1725605441900,-500.0,0.00020017,2]
[337328458,1725605441911,-500.0,0.00020017,2]
[337328459,1725605441920,-500.0,0.00020017,2]
[337328460,1725605441930,-500.0,0.00020017,2]
[337328461,1725605441940,-728.69,0.00020017,2]
[337328462,1725605441950,-500.0,0.00020017,2]
[337328463,1725605441960,-1491.42,0.00020017,2]
[337328464,1725605441970,-500.0,0.00020017,2]
[337328465,1725605441979,-500.0,0.00020017,2]
[337328466,1725605441990,-743.34,0.00020017,2]
[337328467,1725605442000,-500.0,0.00020017,2]
[337328468,1725605442009,-500.0,0.00020017,2]
[337328469,1725605442021,-710.07,0.00020017,2]
[337328470,1725605442030,-511.08552372,0.00020017,2]
[337328471,1725605442040,-500.0,0.00020017,2]
[337328472,1725605442050,-500.0,0.00020017,2]
[337328473,1725605442060,-500.0,0.00020017,2]
[337328474,1725605442069,-500.0,0.00020017,2]
[337328475,1725605442078,-500.0,0.00020017,2]
[337328476,1725605442087,-500.0,0.00020017,2]
[337328477,1725605442097,-500.0,0.00020017,2]
[337328478,1725605442106,-500.0,0.00020017,2]
[337328479,1725605442116,-500.0,0.00020017,2]
[337328480,1725605442125,-500.0,0.00020017,2]
[337328481,1725605442135,-500.0,0.00020017,2]
[337328482,1725605442147,-500.0,0.00020017,2]
[337328483,1725605442156,-500.0,0.00020017,2]
[337328484,1725605442165,-514.44470991,0.00020017,2]
[337328485,1725605442175,-500.0,0.00020017,2]
[337328486,1725605442186,-559.95062601,0.00020017,2]
[337328487,1725605442195,-329.03659954,0.00020017,2]
[337328488,1725605442204,-500.0,0.00020017,2]
[337328489,1725605442213,-161.94261209,0.00020017,2]
[337328490,1725605442223,-500.0,0.00020017,2]
[337328491,1725605442234,-500.0,0.00020017,2]
[337328492,1725605442243,-1582.04,0.00020017,2]
[337328493,1725605442253,-500.0,0.00020017,2]
[337328494,1725605442262,-500.0,0.00020017,2]
[337328495,1725605442273,-500.0,0.00020017,2]
[337328496,1725605442283,-500.0,0.00020017,2]
[337328497,1725605442293,-500.0,0.00020017,2]
[337328498,1725605442303,-500.0,0.00020017,2]
[337328499,1725605442313,-500.0,0.00020017,2]
[337328500,1725605442322,-508.14,0.00020017,2]
[337328501,1725605442331,-522.20669582,0.00020017,2]
[337328502,1725605442341,-504.60690164,0.00020017,2]
[337328503,1725605442350,-1838.4,0.00020017,2]
[337328504,1725605442359,-500.0,0.00020017,2]
[337328505,1725605442368,-500.0,0.00020017,2]
[337328506,1725605442377,-500.0,0.00020017,2]
[337328507,1725605442386,-596.75,0.00020017,2]
[337328508,1725605442395,-500.0,0.00020017,2]
[337328509,1725605442404,-500.0,0.00020017,2]
[337328510,1725605442413,-562.89,0.00020017,2]
[337328511,1725605442422,-500.0,0.00020017,2]
[337328512,1725605442431,-998.07,0.00020017,2]
[337328513,1725605442440,-500.0,0.00020017,2]
[337328514,1725605442450,-500.0,0.00020017,2]
[337328515,1725605442459,-478.28811109,0.00020017,2]
[337328516,1725605442477,-21.71188891,0.00020017,2]
[337328517,1725605442487,-500.0,0.00020017,2]
[337328518,1725605442496,-500.0,0.00020017,2]
[337328519,1725605442506,-500.0,0.00020017,2]
[337328520,1725605442515,-500.0,0.00020017,2]
[337328521,1725605442526,-532.54286167,0.00020017,2]
[337328522,1725605442535,-500.0,0.00020017,2]
[337328523,1725605442544,-524.48,0.00020017,2]
[337328524,1725605442553,-500.0,0.00020017,2]
[337328525,1725605442563,-500.0,0.00020017,2]
[337328526,1725605442572,-500.0,0.00020017,2]
[337328527,1725605442581,-383.9212287,0.00020017,2]
[337328528,1725605442590,-1129.51,0.00020017,2]
[337328529,1725605442599,-500.0,0.00020017,2]
[337328530,1725605442608,-500.0,0.00020017,2]
[337328531,1725605442617,-500.0,0.00020017,2]
[337328532,1725605442626,-500.0,0.00020017,2]
[337328533,1725605442635,-500.0,0.00020017,2]
[337328534,1725605442644,-556.16,0.00020017,2]
[337328535,1725605442654,-817.16,0.00020017,2]
[337328536,1725605442663,-500.0,0.00020017,2]
[337328537,1725605442672,-500.0,0.00020017,2]
[337328538,1725605442682,-694.79,0.00020017,2]
[337328539,1725605442692,-756.06,0.00020017,2]
[337328540,1725605442702,-500.0,0.00020017,2]
[337328541,1725605442711,-500.0,0.00020017,2]
[337328542,1725605442721,-833.07,0.00020017,2]
[337328543,1725605442730,-673.63,0.00020017,2]
[337328544,1725605442740,-500.0,0.00020017,2]
[337328545,1725605442749,-500.0,0.00020017,2]
[337328546,1725605442759,-500.0,0.00020017,2]
[337328547,1725605442768,-500.0,0.00020017,2]
[337328548,1725605442777,-500.0,0.00020017,2]
[337328549,1725605442787,-500.0,0.00020017,2]
[337328550,1725605442797,-500.0,0.00020017,2]
[337328551,1725605442807,-500.0,0.00020017,2]
[337328552,1725605442816,-2176.32,0.00020017,2]
[337328553,1725605442826,-619.69010058,0.00020017,2]
[337328554,1725605442835,-738.25,0.00020017,2]
[337328555,1725605442844,-500.0,0.00020017,2]
[337328556,1725605442854,-500.0,0.00020017,2]
[337328557,1725605442864,-500.0,0.00020017,2]
[337328558,1725605442874,-513.1751574,0.00020017,2]
[337328560,1725605442884,-500.0,0.00020017,2]
[337328562,1725605442894,-118.23667672,0.00020017,2]
[337328568,1725605443099,-500.0,0.00020005,2]
[337328569,1725605443109,-500.0,0.00020005,2]
[337328570,1725605443120,-500.0,0.00020016,2]
[337328571,1725605443129,-1254.51332328,0.00020017,2]
[337328572,1725605443140,-500.0,0.00020017,2]
[337328573,1725605443152,-665.74,0.00020017,2]
[337328574,1725605443163,-500.0,0.00020017,2]
[337328576,1725605443172,-547.14487268,0.00020017,2]
[337328577,1725605443183,-500.0,0.00020017,2]
[337328578,1725605443193,-500.0,0.00020017,2]
[337328579,1725605443203,-500.0,0.00020017,2]
[337328580,1725605443213,-500.0,0.00020017,2]
[337328581,1725605443224,-500.0,0.00020017,2]
[337328582,1725605443235,-500.0,0.00020017,2]
[337328583,1725605443245,-500.0,0.00020017,2]
[337328584,1725605443254,-500.0,0.00020017,2]
[337328585,1725605443264,-503.52492629,0.00020017,2]
[337328586,1725605443274,-500.0,0.00020017,2]
[337328587,1725605443284,-307.21814272,0.00020017,2]
[337328588,1725605443294,-500.0,0.00020017,2]
[337328589,1725605443304,-500.0,0.00020017,2]
[337328590,1725605443314,-500.0,0.00020017,2]
[337328591,1725605443323,-500.0,0.00020017,2]
[337328592,1725605443332,-500.0,0.00020017,2]
[337328593,1725605443342,-525.2029328,0.00020017,2]
[337328594,1725605443351,-500.0,0.00020017,2]
[337328595,1725605443362,-500.0,0.00020017,2]
[337328596,1725605443372,-381.16689232,0.00020017,2]
[337328597,1725605443500,-465.41392555,0.00020016,2]
[337328603,1725605557051,1000.0,0.00027,120]
[337328604,1725605564369,1000.0,0.00025,60]
[337328614,1725605893611,157.433137,0.00019145,2]
[337328624,1725606030481,1046.80949716,0.00019895,2]
[337328633,1725606220769,915.95830998,0.00019894,2]
[337328637,1725606281631,695.17932399,0.00019895,2]
[337328643,1725606411108,801.46352125,0.00019894,2]
[337328653,1725606579688,401.291513,0.000199,3]
[337328654,1725606602261,701.28058112,0.00019884,2]
[337328655,1725606632137,320.33857915,0.00019884,2]
[337328662,1725606632738,-170.57,0.00019974,3]
[337328663,1725606632748,-129.43,0.00019981,2]
[337328709,1725606638846,-170.57,0.00019981,2]
[337328711,1725606638856,-18498.05243175,0.00019982,2]
[337328713,1725606638866,-610.41953124,0.00019983,2]
[337328715,1725606638875,-79778.7561208,0.00019984,2]
[337328717,1725606638885,-6411.74532489,0.00019984,2]
[337328719,1725606638896,-139612.823211,0.00019984,2]
[337328721,1725606638905,-12823.4906498,0.00019984,2]
[337328723,1725606638915,-3491.67262316,0.0001999,2]
[337328725,1725606638925,-500.0,0.0001999,2]
[337328727,1725606638934,-1256.39,0.00019993,2]
[337328729,1725606638944,-5248.9,0.00019993,2]
[337328731,1725606638953,-1010.76,0.00019993,2]
[337328733,1725606638963,-500.0,0.00019993,2]
[337328735,1725606638972,-500.0,0.00019993,2]
[337328737,1725606638982,-6732.88,0.00019993,2]
[337328739,1725606638991,-500.0,0.00019993,2]
[337328741,1725606639001,-503.1,0.00019993,2]
[337328743,1725606639010,-1359.91,0.00019993,2]
[337328745,1725606639019,-500.0,0.00019993,2]
[337328747,1725606639028,-1115.85,0.00019993,2]
[337328749,1725606639038,-1648.57,0.00019993,2]
[337328752,1725606639048,-629.79,0.00019993,2]
[337328754,1725606639057,-732.87,0.00019993,2]
[337328756,1725606639066,-635.01,0.00019993,2]
[337328758,1725606639075,-635.01,0.00019993,2]
[337328759,1725606639084,-635.01,0.00019993,2]
[337328762,1725606639093,-635.01,0.00019993,2]
[337328764,1725606639102,-635.01,0.00019993,2]
[337328766,1725606639111,-635.01,0.00019993,2]
[337328767,1725606639120,-635.01,0.00019993,2]
[337328769,1725606639129,-635.01,0.00019993,2]
[337328771,1725606639138,-880.96,0.00019994,2]
[337328773,1725606639151,-500.0,0.00019994,2]
[337328775,1725606639160,-500.0,0.00019994,2]
[337328777,1725606639169,-500.0,0.00019994,2]
[337328780,1725606639178,-500.0,0.00019994,2]
[337328782,1725606639188,-226.15772771,0.00019994,2]
[337328784,1725606639197,-500.0,0.00019994,2]
[337328786,1725606639207,-500.0,0.00019994,2]
[337328787,1725606639216,-500.0,0.00019994,2]
[337328789,1725606639225,-502.72370434,0.00019994,2]
[337328792,1725606639235,-500.0,0.00019994,2]
[337328794,1725606639245,-500.0,0.00019994,2]
[337328796,1725606639254,-500.0,0.00019994,2]
[337328798,1725606639263,-500.0,0.00019994,2]
[337328800,1725606639273,-500.0,0.00019994,2]
[337328802,1725606639282,-500.0,0.00019994,2]
[337328804,1725606639293,-500.0,0.00019994,2]
[337328806,1725606639303,-700.48,0.00019994,2]
[337328808,1725606639312,-500.0,0.00019994,2]
[337328810,1725606639321,-500.0,0.00019994,2]
[337328812,1725606639330,-500.0,0.00019994,2]
[337328814,1725606639339,-500.0,0.00019994,2]
[337328816,1725606639349,-506.19306859,0.00019994,2]
[337328818,1725606639358,-560.58,0.00019994,2]
[337328820,1725606639367,-500.0,0.00019994,2]
[337328822,1725606639376,-500.0,0.00019994,2]
[337328824,1725606639385,-646.49,0.00019994,2]
[337328826,1725606639395,-500.0,0.00019994,2]
[337328828,1725606639405,-457.19055903,0.00019994,2]
[337328830,1725606639414,-500.0,0.00019994,2]
[337328832,1725606639423,-500.0,0.00019994,2]
[337328834,1725606639432,-500.0,0.00019994,2]
[337328836,1725606639441,-517.61406357,0.00019994,2]
[337328838,1725606639450,-500.0,0.00019994,2]
[337328840,1725606639460,-500.0,0.00019994,2]
[337328842,1725606639469,-500.0,0.00019994,2]
[337328844,1725606639478,-500.0,0.00019994,2]
[337328846,1725606639489,-558.66,0.00019994,2]
[337328848,1725606639502,-500.0,0.00019994,2]
[337328850,1725606639511,-500.0,0.00019994,2]
[337328852,1725606639520,-488.60101957,0.00019994,2]
[337328854,1725606639530,-200.0,0.00019994,2]
[337328856,1725606639539,-752.47,0.00019994,2]
[337328858,1725606639549,-500.0,0.00019994,2]
[337328859,1725606639558,-500.0,0.00019994,2]
[337328862,1725606639568,-812.4,0.00019994,2]
[337328864,1725606639580,-599.38927574,0.00019994,2]
[337328866,1725606639589,-500.0,0.00019994,2]
[337328868,1725606639599,-500.0,0.00019994,2]
[337328870,1725606639608,-516.0161593,0.00019994,2]
[337328872,1725606639618,-500.0,0.00019994,2]
[337328874,1725606639627,-500.0,0.00019994,2]
[337328876,1725606639636,-500.0,0.00019994,2]
[337328878,1725606639647,-500.0,0.00019994,2]
[337328880,1725606639656,-500.0,0.00019994,2]
[337328882,1725606639665,-500.0,0.00019994,2]
[337328884,1725606639675,-500.0,0.00019994,2]
[337328886,1725606639684,-188.73129813,0.00019994,2]
[337328888,1725606639693,-500.0,0.00019994,2]
[337328890,1725606639703,-500.0,0.00019994,2]
[337328892,1725606639713,-500.0,0.00019994,2]
[337328894,1725606639722,-500.0,0.00019994,2]
[337328896,1725606639732,-500.0,0.00019994,2]
[337328898,1725606639741,-500.0,0.00019994,2]
[337328900,1725606639750,-500.0,0.00019994,2]
[337328902,1725606639760,-500.0,0.00019994,2]
[337328904,1725606639769,-517.56,0.00019994,2]
[337328906,1725606639778,-500.0,0.00019994,2]
[337328908,1725606639788,-500.0,0.00019994,2]
[337328910,1725606639797,-500.0,0.00019994,2]
[337328912,1725606639807,-500.0,0.00019994,2]
[337328915,1725606639817,-390.28380027,0.00019994,2]
[337328935,1725606639996,-500.0,0.00019994,2]
[337328937,1725606640006,-500.0,0.00019994,2]
[337328939,1725606640015,-500.0,0.00019994,2]
[337328941,1725606640025,-636.76,0.00019994,2]
[337328943,1725606640034,-500.0,0.00019994,2]
[337328945,1725606640044,-710.63,0.00019994,2]
[337328947,1725606640053,-500.0,0.00019994,2]
[337328949,1725606640063,-500.0,0.00019994,2]
[337328951,1725606640073,-500.0,0.00019994,2]
[337328952,1725606640082,-500.0,0.00019994,2]
[337328955,1725606640092,-500.0,0.00019994,2]
[337328957,1725606640103,-500.0,0.00019994,2]
[337328958,1725606640112,-500.0,0.00019994,2]
[337328960,1725606640122,-500.0,0.00019994,2]
[337328963,1725606640132,-500.0,0.00019994,2]
[337328964,1725606640141,-500.0,0.00019994,2]
[337328966,1725606640151,-500.0,0.00019994,2]
[337328968,1725606640161,-500.0,0.00019994,2]
[337328970,1725606640170,-500.0,0.00019994,2]
[337328972,1725606640180,-500.0,0.00019994,2]
[337328974,1725606640190,-1210.97,0.00019994,2]
[337328976,1725606640203,-500.0,0.00019994,2]
[337328977,1725606640213,-500.0,0.00019994,2]
[337328978,1725606640222,-512.43267611,0.00019994,2]
[337328979,1725606640232,-500.0,0.00019994,2]
[337328980,1725606640241,-500.0,0.00019994,2]
[337328981,1725606640250,-500.0,0.00019994,2]
[337328982,1725606640260,-500.0,0.00019994,2]
[337328983,1725606640270,-500.0,0.00019994,2]
[337328984,1725606640280,-500.0,0.00019994,2]
[337328985,1725606640290,-939.71,0.00019994,2]
[337328986,1725606640301,-500.0,0.00019994,2]
[337328987,1725606640311,-500.0,0.00019994,2]
[337328988,1725606640321,-525.94481782,0.00019994,2]
[337328989,1725606640330,-500.0,0.00019994,2]
[337328990,1725606640340,-500.0,0.00019994,2]
[337328991,1725606640351,-254.41865276,0.00019994,2]
[337328993,1725606640361,-541.14,0.00019994,2]
[337328995,1725606640373,-1506.64,0.00019994,2]
[337328997,1725606640382,-500.0,0.00019994,2]
[337329000,1725606640392,-500.0,0.00019994,2]
[337329002,1725606640403,-500.0,0.00019994,2]
[337329004,1725606640412,-500.0,0.00019994,2]
[337329006,1725606640422,-500.0,0.00019994,2]
[337329008,1725606640431,-1400.23,0.00019994,2]
[337329010,1725606640441,-1281.86,0.00019994,2]
[337329011,1725606640451,-500.0,0.00019994,2]
[337329013,1725606640460,-500.0,0.00019994,2]
[337329016,1725606640470,-511.7950336,0.00019994,2]
[337329018,1725606640480,-500.0,0.00019994,2]
[337329020,1725606640490,-500.0,0.00019994,2]
[337329022,1725606640501,-500.0,0.00019994,2]
[337329024,1725606640513,-2094.28,0.00019994,2]
[337329026,1725606640522,-500.0,0.00019994,2]
[337329028,1725606640532,-500.0,0.00019994,2]
[337329030,1725606640543,-500.0,0.00019994,2]
[337329032,1725606640552,-500.0,0.00019994,2]
[337329034,1725606640562,-449.98070982,0.00019994,2]
[337329036,1725606640571,-38468.26,0.00019994,2]
[337329038,1725606640581,-742.39,0.00019994,2]
[337329040,1725606640591,-209.67090129,0.00019994,2]
[337329042,1725606640600,-500.0,0.00019994,2]
[337329044,1725606640610,-818.32,0.00019994,2]
[337329046,1725606640620,-716.02,0.00019994,2]
[337329048,1725606640630,-500.0,0.00019994,2]
[337329050,1725606640641,-500.0,0.00019994,2]
[337329052,1725606640651,-500.0,0.00019994,2]
[337329054,1725606640661,-500.0,0.00019994,2]
[337329056,1725606640670,-500.0,0.00019994,2]
[337329058,1725606640680,-500.0,0.00019994,2]